fUST/lending_fUST_20250830
["ID","MTS","AMOUNT","RATE_DAILY","PERIOD"]
[382201543,1756543841545,-480.0,0.00020246,2]
[382201544,1756543841554,-480.0,0.00020246,2]
[382201545,1756543841563,-1066.37,0.00020246,2]
[382201546,1756543841574,-1399.67,0.00020246,2]
[382201547,1756543841584,-885.12,0.00020246,2]
[382201548,1756543841593,-480.0,0.00020246,2]
[382201549,1756543841603,-1285.54,0.00020246,2]
[382201550,1756543841613,-1331.47,0.00020246,2]
[382201551,1756543841622,-1502.12,0.00020246,2]
[382201552,1756543841631,-480.0,0.00020246,2]
[382201553,1756543841640,-480.0,0.00020246,2]
[382201554,1756543841652,-655.08,0.00020246,2]
[382201555,1756543841662,-480.0,0.00020246,2]
[382201556,1756543841671,-1072.84,0.00020246,2]
[382201557,1756543841681,-480.0,0.00020246,2]
[382201558,1756543841690,-480.0,0.00020246,2]
[382201559,1756543841700,-886.71,0.00020246,2]
[382201560,1756543841709,-480.0,0.00020246,2]
[382201561,1756543841718,-537.89,0.00020246,2]
[382201562,1756543841728,-480.0,0.00020246,2]
[382201563,1756543841737,-539.26,0.00020246,2]
[382201564,1756543841747,-500.0,0.00020246,2]
[382201565,1756543841756,-1186.1,0.00020246,2]
[382201566,1756543841766,-484.99,0.00020246,2]
[382201567,1756543841775,-480.0,0.00020246,2]
[382201568,1756543841785,-480.0,0.00020246,2]
[382201569,1756543841794,-785.97,0.00020246,2]
[382201570,1756543841807,-493.54,0.00020246,2]
[382201571,1756543841817,-996.5,0.00020246,2]
[382201572,1756543841828,-480.0,0.00020246,2]
[382201573,1756543841841,-480.0,0.00020246,2]
[382201574,1756543841852,-480.0,0.00020246,2]
[382201575,1756543841864,-631.5,0.00020246,2]
[382201576,1756543841873,-956.33,0.00020246,2]
[382201577,1756543841883,-480.0,0.00020247,2]
[382201578,1756543841892,-481.99613811,0.00020247,2]
[382201579,1756543841903,-480.0,0.00020247,2]
[382201580,1756543841913,-480.0,0.00020247,2]
[382201581,1756543841923,-480.0,0.00020247,2]
[382201582,1756543841933,-480.0,0.00020247,2]
[382201583,1756543841942,-563.2,0.00020247,2]
[382201584,1756543841951,-956.53,0.00020247,2]
[382201585,1756543841966,-480.0,0.00020247,2]
[382201586,1756543841975,-1063.97,0.00020247,2]
[382201587,1756543841985,-480.0,0.00020247,2]
[382201588,1756543841994,-1246.5,0.00020247,2]
[382201589,1756543842004,-480.0,0.00020247,2]
[382201590,1756543842014,-4740.55,0.00020247,2]
[382201591,1756543842023,-1775.81,0.00020247,2]
[382201592,1756543842032,-1087.43,0.00020247,2]
[382201593,1756543842042,-507.78,0.00020247,2]
[382201594,1756543842051,-1277.81,0.00020247,2]
[382201595,1756543842061,-6468.03,0.00020247,2]
[382201596,1756543842070,-1533.73,0.00020247,2]
[382201597,1756543842079,-1158.54,0.00020247,2]
[382201598,1756543842089,-2328.8,0.00020247,2]
[382201599,1756543842099,-5925.0,0.00020247,2]
[382201600,1756543842108,-675.82,0.00020247,2]
[382201601,1756543842117,-1018.4,0.0002025,2]
[382201602,1756543842126,-1127.19,0.0002025,2]
[382201603,1756543842136,-915.42,0.0002025,2]
[382201604,1756543842145,-480.0,0.0002025,2]
[382201605,1756543842155,-553.51403797,0.0002025,2]
[382201606,1756543842164,-2794.57,0.0002025,2]
[382201607,1756543842173,-1158.02,0.0002025,2]
[382201608,1756543842183,-4004.89,0.0002025,2]
[382201609,1756543842192,-481.28767481,0.0002025,2]
[382201610,1756543842201,-1287.36,0.0002025,2]
[382201611,1756543842210,-870.86,0.0002025,2]
[382201612,1756543842220,-603.96,0.0002025,2]
[382201613,1756543842229,-1246.96,0.0002025,2]
[382201614,1756543842239,-500.0,0.0002025,2]
[382201615,1756543842250,-480.0,0.00020251,2]
[382201616,1756543842259,-480.0,0.00020251,2]
[382201617,1756543842269,-563.16773665,0.00020251,2]
[382201618,1756543842279,-480.0,0.00020251,2]
[382201619,1756543842291,-480.0,0.00020251,2]
[382201620,1756543842300,-480.0,0.00020251,2]
[382201621,1756543842310,-480.0,0.00020251,2]
[382201622,1756543842319,-480.0,0.00020251,2]
[382201623,1756543842328,-480.0,0.00020251,2]
[382201624,1756543842338,-1227.5,0.00020251,2]
[382201625,1756543842348,-480.0,0.00020251,2]
[382201626,1756543842359,-480.0,0.00020251,2]
[382201627,1756543842370,-480.0,0.00020251,2]
[382201628,1756543842379,-480.0,0.00020251,2]
[382201629,1756543842390,-480.0,0.00020251,2]
[382201630,1756543842401,-480.0,0.00020251,2]
[382201631,1756543842412,-480.0,0.00020251,2]
[382201632,1756543842421,-480.0,0.00020251,2]
[382201633,1756543842430,-191.28855677,0.00020251,2]
[382201634,1756543842440,-480.0,0.00020251,2]
[382201635,1756543842451,-480.0,0.00020251,2]
[382201636,1756543842460,-480.0,0.00020251,2]
[382201637,1756543842470,-480.0,0.00020251,2]
[382201638,1756543842479,-480.0,0.00020251,2]
[382201639,1756543842488,-480.0,0.00020251,2]
[382201640,1756543842498,-480.0,0.00020251,2]
[382201641,1756543842507,-480.0,0.00020251,2]
[382201642,1756543842516,-480.0,0.00020251,2]
[382201643,1756543842526,-480.0,0.00020251,2]
[382201644,1756543842535,-480.0,0.00020251,2]
[382201645,1756543842545,-480.0,0.00020251,2]
[382201646,1756543842554,-480.0,0.00020251,2]
[382201647,1756543842563,-483.09,0.00020251,2]
[382201648,1756543842575,-480.0,0.00020251,2]
[382201649,1756543842584,-480.0,0.00020251,2]
[382201650,1756543842594,-250.28666959,0.00020251,2]
[382201651,1756543842605,-480.0,0.00020251,2]
[382201652,1756543842618,-526.26718418,0.00020251,2]
[382201653,1756543842628,-480.0,0.00020251,2]
[382201654,1756543842638,-469.80261877,0.00020251,2]
[382201655,1756543842649,-480.0,0.00020251,2]
[382201656,1756543842663,-480.0,0.00020251,2]
[382201657,1756543842675,-480.0,0.00020251,2]
[382201658,1756543842684,-480.0,0.00020251,2]
[382201659,1756543842694,-480.0,0.00020251,2]
[382201660,1756543842704,-511.73,0.00020251,2]
[382201661,1756543842715,-480.0,0.00020251,2]
[382201662,1756543842727,-480.0,0.00020251,2]
[382201663,1756543842737,-480.0,0.00020251,2]
[382201664,1756543842748,-1179.63,0.00020251,2]
[382201665,1756543842759,-480.0,0.00020251,2]
[382201666,1756543842768,-480.0,0.00020251,2]
[382201667,1756543842777,-328.09326813,0.00020251,2]
[382201668,1756543842787,-480.0,0.00020251,2]
[382201669,1756543842798,-480.0,0.00020251,2]
[382201670,1756543842808,-480.0,0.00020251,2]
[382201671,1756543842817,-480.0,0.00020251,2]
[382201672,1756543842828,-779.75,0.00020251,2]
[382201673,1756543842839,-286.36684602,0.00020251,2]
[382201674,1756543842849,-480.0,0.00020251,2]
[382201675,1756543842859,-1442.81,0.00020251,2]
[382201676,1756543842868,-552.47,0.00020251,2]
[382201677,1756543842877,-480.0,0.00020251,2]
[382201678,1756543842887,-480.0,0.00020251,2]
[382201679,1756543842896,-480.0,0.00020251,2]
[382201680,1756543842905,-480.0,0.00020251,2]
[382201681,1756543842916,-480.0,0.00020251,2]
[382201682,1756543842926,-480.0,0.00020251,2]
[382201683,1756543842936,-480.0,0.00020251,2]
[382201684,1756543842945,-480.0,0.00020251,2]
[382201685,1756543842955,-480.0,0.00020251,2]
[382201686,1756543842965,-480.0,0.00020251,2]
[382201687,1756543842975,-480.0,0.00020251,2]
[382201688,1756543842985,-1178.19,0.00020251,2]
[382201689,1756543842994,-1146.42,0.00020251,2]
[382201690,1756543843004,-480.0,0.00020251,2]
[382201692,1756543843014,-886.59,0.00020251,2]
[382201693,1756543843023,-246.32322888,0.00020251,2]
[382201694,1756543843032,-480.0,0.00020251,2]
[382201695,1756543843041,-480.0,0.00020251,2]
[382201696,1756543843050,-480.0,0.00020251,2]
[382201697,1756543843059,-480.0,0.00020251,2]
[382201699,1756543843068,-494.76,0.00020251,2]
[382201701,1756543843079,-342.68048927,0.00020251,2]
[382201703,1756543843088,-758.39,0.00020251,2]
[382201705,1756543843097,-480.0,0.00020251,2]
[382201708,1756543843106,-919.88,0.00020251,2]
[382201710,1756543843115,-1566.92,0.00020251,2]
[382201711,1756543843124,-480.0,0.00020251,2]
[382201712,1756543843132,-480.0,0.00020251,2]
[382201713,1756543843140,-480.0,0.00020251,2]
[382201714,1756543843149,-480.0,0.00020251,2]
[382201715,1756543843157,-480.0,0.00020251,2]
[382201716,1756543843166,-493.21,0.00020251,2]
[382201717,1756543843175,-480.0,0.00020251,2]
[382201718,1756543843183,-611.4,0.00020251,2]
[382201719,1756543843192,-480.0,0.00020251,2]
[382201720,1756543843200,-480.0,0.00020251,2]
[382201721,1756543843209,-480.0,0.00020251,2]
[382201722,1756543843217,-480.0,0.00020251,2]
[382201723,1756543843226,-480.0,0.00020251,2]
[382201724,1756543843234,-1420.72,0.00020251,2]
[382201725,1756543843243,-1601.31,0.00020251,2]
[382201726,1756543843251,-1132.46,0.00020251,2]
[382201727,1756543843426,-1418.83,0.00020251,2]
[382201728,1756543843437,-480.0,0.00020251,2]
[382201729,1756543843447,-480.0,0.00020251,2]
[382201730,1756543843455,-480.0,0.00020251,2]
[382201731,1756543843465,-480.0,0.00020251,2]
[382201732,1756543843474,-480.0,0.00020251,2]
[382201733,1756543843483,-480.0,0.00020251,2]
[382201734,1756543843492,-480.0,0.00020251,2]
[382201735,1756543843501,-528.46,0.00020251,2]
[382201736,1756543843510,-546.04,0.00020251,2]
[382201737,1756543843518,-501.34,0.00020251,2]
[382201738,1756543843526,-1113.73,0.00020251,2]
[382201739,1756543843535,-480.0,0.00020251,2]
[382201740,1756543843544,-480.0,0.00020251,2]
[382201741,1756543843552,-480.0,0.00020251,2]
[382201742,1756543843560,-480.0,0.00020251,2]
[382201743,1756543843569,-480.0,0.00020251,2]
[382201744,1756543843582,-1382.71,0.00020251,2]
[382201745,1756543843589,-480.0,0.00020251,2]
[382201746,1756543843596,-481.10875383,0.00020251,2]
[382201747,1756543843603,-480.0,0.00020251,2]
[382201748,1756543843613,-480.0,0.00020251,2]
[382201749,1756543843619,-480.0,0.00020251,2]
[382201750,1756543843626,-480.0,0.00020251,2]
[382201751,1756543843633,-480.0,0.00020251,2]
[382201752,1756543843640,-480.0,0.00020251,2]
[382201753,1756543843651,-480.0,0.00020251,2]
[382201754,1756543843663,-480.0,0.00020251,2]
[382201756,1756543843673,-446.25156577,0.00020251,2]
[382201757,1756543843681,-480.0,0.00020251,2]
[382201758,1756543843688,-480.0,0.00020251,2]
[382201759,1756543843695,-480.0,0.00020251,2]
[382201760,1756543843704,-480.0,0.00020251,2]
[382201761,1756543843714,-693.6,0.00020251,2]
[382201762,1756543843723,-311.52588648,0.00020251,2]
[382201763,1756543843733,-480.0,0.00020251,2]
[382201764,1756543843743,-480.0,0.00020251,2]
[382201765,1756543843752,-1142.23,0.00020251,2]
[382201766,1756543843762,-1343.78,0.00020251,2]
[382201767,1756543843771,-490.47045708,0.00020251,2]
[382201768,1756543843781,-480.0,0.00020251,2]
[382201769,1756543843791,-480.0,0.00020251,2]
[382201770,1756543843802,-480.0,0.00020251,2]
[382201771,1756543843812,-250.17293144,0.00020251,2]
[382201772,1756543843821,-1420.58,0.00020251,2]
[382201773,1756543843831,-480.0,0.00020251,2]
[382201774,1756543843841,-480.0,0.00020251,2]
[382201775,1756543843851,-480.0,0.00020251,2]
[382201776,1756543843861,-480.0,0.00020251,2]
[382201777,1756543843870,-480.0,0.00020251,2]
[382201778,1756543843880,-480.0,0.00020251,2]
[382201779,1756543843889,-480.0,0.00020251,2]
[382201780,1756543843899,-185.38089498,0.00020251,2]
[382201781,1756543843909,-480.0,0.00020251,2]
[382201782,1756543843920,-580.38,0.00020251,2]
[382201783,1756543843930,-480.0,0.00020251,2]
[382201784,1756543843940,-480.0,0.00020251,2]
[382201785,1756543843950,-480.0,0.00020251,2]
[382201786,1756543843959,-480.0,0.00020251,2]
[382201787,1756543843969,-480.0,0.00020251,2]
[382201788,1756543843979,-278.54133583,0.00020251,2]
[382201789,1756543843989,-480.0,0.00020251,2]
[382201790,1756543843999,-480.0,0.00020251,2]
[382201791,1756543844008,-480.0,0.00020251,2]
[382201792,1756543844018,-1158.66,0.00020251,2]
[382201793,1756543844027,-480.0,0.00020251,2]
[382201794,1756543844037,-821.44,0.00020251,2]
[382201795,1756543844046,-1109.26,0.00020251,2]
[382201796,1756543844056,-480.0,0.00020251,2]
[382201797,1756543844066,-480.0,0.00020251,2]
[382201798,1756543844075,-1395.67,0.00020251,2]
[382201799,1756543844084,-480.0,0.00020251,2]
[382201800,1756543844094,-480.0,0.00020251,2]
[382201801,1756543844103,-480.0,0.00020251,2]
[382201802,1756543844112,-1702.22,0.00020251,2]
[382201803,1756543844122,-484.11929599,0.00020251,2]
[382201804,1756543844131,-481.60855745,0.00020251,2]
[382201805,1756543844141,-480.0,0.00020251,2]
[382201806,1756543844150,-480.0,0.00020251,2]
[382201807,1756543844159,-480.0,0.00020251,2]
[382201808,1756543844169,-610.26,0.00020251,2]
[382201809,1756543844178,-480.0,0.00020251,2]
[382201810,1756543844187,-1233.39,0.00020251,2]
[382201811,1756543844197,-698.86,0.00020251,2]
[382201812,1756543844207,-480.0,0.00020251,2]
[382201813,1756543844216,-480.0,0.00020251,2]
[382201814,1756543844225,-480.0,0.00020251,2]
[382201815,1756543844234,-480.0,0.00020251,2]
[382201816,1756543844244,-1000.0,0.00020251,2]
[382201817,1756543844256,-480.0,0.00020251,2]
[382201818,1756543844265,-480.0,0.00020251,2]
[382201819,1756543844275,-480.0,0.00020251,2]
[382201820,1756543844284,-480.0,0.00020251,2]
[382201821,1756543844294,-480.0,0.00020251,2]
[382201822,1756543844304,-1141.75,0.00020251,2]
[382201823,1756543844314,-480.0,0.00020251,2]
[382201824,1756543844323,-480.0,0.00020251,2]
[382201825,1756543844332,-480.0,0.00020251,2]
[382201826,1756543844341,-480.0,0.00020251,2]
[382201827,1756543844351,-1320.51,0.00020251,2]
[382201828,1756543844360,-480.0,0.00020251,2]
[382201829,1756543844374,-500.0,0.00020251,2]
[382201830,1756543844384,-500.0,0.00020251,2]
[382201831,1756543844393,-528.67,0.00020251,2]
[382201832,1756543844402,-480.0,0.00020251,2]
[382201833,1756543844411,-1580.04,0.00020251,2]
[382201834,1756543844422,-480.0,0.00020251,2]
[382201835,1756543844431,-1147.14,0.00020251,2]
[382201836,1756543844441,-480.0,0.00020251,2]
[382201837,1756543844450,-774.13,0.00020251,2]
[382201838,1756543844459,-480.0,0.00020251,2]
[382201839,1756543844468,-480.0,0.00020251,2]
[382201840,1756543844477,-480.0,0.00020251,2]
[382201841,1756543844487,-480.0,0.00020251,2]
[382201842,1756543844496,-480.0,0.00020251,2]
[382201843,1756543844506,-383.04412942,0.00020251,2]
[382201844,1756543844516,-480.0,0.00020251,2]
[382201845,1756543844525,-480.0,0.00020251,2]
[382201846,1756543844535,-480.0,0.00020251,2]
[382201847,1756543844544,-480.0,0.00020251,2]
[382201848,1756543844553,-480.0,0.00020251,2]
[382201849,1756543844562,-460.73481367,0.00020251,2]
[382201850,1756543844575,-481.81390987,0.00020251,2]
[382201851,1756543844584,-480.0,0.00020251,2]
[382201852,1756543844594,-608.67,0.00020251,2]
[382201853,1756543844603,-480.0,0.00020251,2]
[382201854,1756543844612,-480.0,0.00020251,2]
[382201855,1756543844623,-480.0,0.00020251,2]
[382201856,1756543844632,-480.0,0.00020251,2]
[382201857,1756543844642,-1151.84,0.00020251,2]
[382201858,1756543844652,-480.0,0.00020251,2]
[382201859,1756543844662,-511.65,0.00020251,2]
[382201860,1756543844671,-480.0,0.00020251,2]
[382201861,1756543844680,-150.0,0.00020251,2]
[382201862,1756543844689,-498.4,0.00020251,2]
[382201863,1756543844699,-480.0,0.00020251,2]
[382201864,1756543844708,-492.72,0.00020251,2]
[382201865,1756543844717,-480.0,0.00020251,2]
[382201866,1756543844727,-480.0,0.00020251,2]
[382201867,1756543844736,-480.0,0.00020251,2]
[382201868,1756543844745,-480.0,0.00020251,2]
[382201869,1756543844755,-1785.59,0.00020251,2]
[382201870,1756543844764,-480.0,0.00020251,2]
[382201871,1756543844774,-237.55708948,0.00020253,2]
[382201872,1756543844783,-489.18650435,0.00020253,2]
[382201873,1756543844793,-480.0,0.00020253,2]
[382201874,1756543844802,-482.91423785,0.00020253,2]
[382201875,1756543844811,-480.0,0.00020253,2]
[382201876,1756543844821,-480.0,0.00020253,2]
[382201877,1756543844831,-480.0,0.00020253,2]
[382201878,1756543844840,-480.0,0.00020253,2]
[382201879,1756543844849,-480.0,0.00020253,2]
[382201880,1756543844859,-1255.48,0.00020253,2]
[382201881,1756543844869,-572.6,0.00020253,2]
[382201882,1756543844878,-1134.7,0.00020253,2]
[382201883,1756543844888,-375.00574791,0.00020253,2]
[382201884,1756543844898,-731.7,0.00020253,2]
[382201885,1756543844907,-1031.75,0.00020253,2]
[382201886,1756543844916,-480.0,0.00020253,2]
[382201887,1756543844927,-500.0,0.00020253,2]
[382201888,1756543844936,-465.34449854,0.00020253,2]
[382201889,1756543844945,-480.0,0.00020253,2]
[382201890,1756543844955,-940.43,0.00020253,2]
[382201891,1756543844965,-1355.85,0.00020253,2]
[382201892,1756543844974,-1363.91,0.00020253,2]
[382201893,1756543844983,-480.0,0.00020253,2]
[382201894,1756543844993,-480.0,0.00020253,2]
[382201895,1756543845002,-799.45,0.00020253,2]
[382201896,1756543845011,-480.0,0.00020253,2]
[382201897,1756543845021,-664.04,0.00020253,2]
[382201898,1756543845031,-480.0,0.00020253,2]
[382201899,1756543845040,-480.0,0.00020253,2]
[382201900,1756543845050,-480.0,0.00020253,2]
[382201901,1756543845060,-480.0,0.00020253,2]
[382201902,1756543845070,-480.0,0.00020253,2]
[382201903,1756543845079,-1163.49,0.00020253,2]
[382201904,1756543845088,-480.0,0.00020253,2]
[382201905,1756543845097,-480.0,0.00020253,2]
[382201906,1756543845107,-501.23,0.00020253,2]
[382201907,1756543845116,-480.0,0.00020253,2]
[382201908,1756543845126,-480.0,0.00020253,2]
[382201909,1756543845135,-480.0,0.00020253,2]
[382201910,1756543845145,-480.0,0.00020253,2]
[382201911,1756543845154,-994.91,0.00020253,2]
[382201912,1756543845163,-1067.56,0.00020253,2]
[382201913,1756543845172,-480.0,0.00020253,2]
[382201914,1756543845181,-480.0,0.00020253,2]
[382201915,1756543845190,-480.0,0.00020253,2]
[382201916,1756543845200,-542.37,0.00020253,2]
[382201917,1756543845209,-480.0,0.00020253,2]
[382201918,1756543845218,-480.0,0.00020253,2]
[382201919,1756543845228,-480.0,0.00020253,2]
[382201920,1756543845237,-480.0,0.00020253,2]
[382201921,1756543845246,-480.0,0.00020253,2]
[382201922,1756543845256,-480.0,0.00020253,2]
[382201923,1756543845265,-480.0,0.00020253,2]
[382201924,1756543845276,-520.07,0.00020253,2]
[382201925,1756543845285,-568.94,0.00020253,2]
[382201926,1756543845294,-480.0,0.00020253,2]
[382201927,1756543845303,-480.0,0.00020253,2]
[382201928,1756543845313,-1000.0,0.00020254,2]
[382201929,1756543845322,-1000.0,0.00020254,2]
[382201930,1756543845332,-1000.0,0.00020254,2]
[382201931,1756543845341,-1000.0,0.00020254,2]
[382201932,1756543845350,-1000.0,0.00020254,2]
[382201933,1756543845359,-1123.37,0.00020255,2]
[382201934,1756543845369,-480.0,0.00020255,2]
[382201935,1756543845379,-480.0,0.00020255,2]
[382201936,1756543845388,-480.0,0.00020255,2]
[382201937,1756543845397,-1491.47,0.00020255,2]
[382201938,1756543845406,-480.0,0.00020255,2]
[382201939,1756543845416,-480.0,0.00020255,2]
[382201940,1756543845426,-480.0,0.00020255,2]
[382201941,1756543845435,-480.70617667,0.00020255,2]
[382201942,1756543845446,-480.0,0.00020255,2]
[382201943,1756543845456,-480.0,0.00020255,2]
[382201944,1756543845467,-480.0,0.00020255,2]
[382201945,1756543845477,-480.0,0.00020255,2]
[382201946,1756543845486,-480.0,0.00020255,2]
[382201947,1756543845496,-480.0,0.00020255,2]
[382201948,1756543845506,-585.59,0.00020255,2]
[382201949,1756543845515,-481.96883939,0.00020255,2]
[382201950,1756543845525,-489.43,0.00020255,2]
[382201951,1756543845534,-639.97,0.00020255,2]
[382201952,1756543845543,-481.54,0.00020255,2]
[382201953,1756543845552,-530.59005889,0.00020255,2]
[382201954,1756543845562,-480.0,0.00020255,2]
[382201955,1756543845572,-480.0,0.00020255,2]
[382201956,1756543845583,-480.0,0.00020255,2]
[382201957,1756543845593,-480.0,0.00020255,2]
[382201958,1756543845602,-494.44365134,0.00020255,2]
[382201959,1756543845612,-480.0,0.00020255,2]
[382201960,1756543845622,-480.0,0.00020255,2]
[382201961,1756543845632,-480.0,0.00020255,2]
[382201962,1756543845641,-480.0,0.00020255,2]
[382201963,1756543845653,-488.38,0.00020255,2]
[382201964,1756543845662,-482.28658256,0.00020255,2]
[382201965,1756543845672,-480.0,0.00020255,2]
[382201966,1756543845681,-480.0,0.00020255,2]
[382201967,1756543845691,-480.0,0.00020255,2]
[382201968,1756543845700,-480.0,0.00020255,2]
[382201969,1756543845710,-480.0,0.00020255,2]
[382201970,1756543845719,-480.0,0.00020255,2]
[382201971,1756543845729,-706.42,0.00020255,2]
[382201972,1756543845738,-484.47,0.00020255,2]
[382201973,1756543845748,-480.0,0.00020255,2]
[382201974,1756543845757,-558.42,0.00020255,2]
[382201975,1756543845766,-480.0,0.00020255,2]
[382201976,1756543845775,-480.0,0.00020255,2]
[382201977,1756543845785,-480.0,0.00020255,2]
[382201978,1756543845793,-480.0,0.00020255,2]
[382201979,1756543845803,-480.0,0.00020255,2]
[382201980,1756543845812,-480.0,0.00020255,2]
[382201981,1756543845821,-480.0,0.00020255,2]
[382201982,1756543845830,-1000.0,0.00020255,2]
[382201983,1756543845840,-480.0,0.00020255,2]
[382201984,1756543845849,-480.0,0.00020255,2]
[382201985,1756543845859,-480.0,0.00020255,2]
[382201986,1756543845868,-500.0,0.00020255,2]
[382201987,1756543845878,-480.0,0.00020255,2]
[382201988,1756543845887,-480.0,0.00020255,2]
[382201989,1756543845897,-480.0,0.00020255,2]
[382201990,1756543845906,-480.0,0.00020255,2]
[382201991,1756543845916,-480.0,0.00020255,2]
[382201992,1756543845927,-480.0,0.00020255,2]
[382201993,1756543845937,-480.0,0.00020255,2]
[382201994,1756543845946,-654.97,0.00020255,2]
[382201995,1756543845956,-820.26,0.00020255,2]
[382201996,1756543845965,-480.0,0.00020255,2]
[382201997,1756543845974,-480.0,0.00020255,2]
[382201998,1756543845983,-480.0,0.00020255,2]
[382201999,1756543845993,-802.89,0.00020255,2]
[382202000,1756543846002,-480.0,0.00020255,2]
[382202001,1756543846011,-480.0,0.00020255,2]
[382202002,1756543846021,-480.0,0.00020255,2]
[382202003,1756543846031,-833.3,0.00020255,2]
[382202004,1756543846040,-480.0,0.00020255,2]
[382202006,1756543846050,-480.0,0.00020255,2]
[382202007,1756543846059,-480.0,0.00020255,2]
[382202008,1756543846069,-480.0,0.00020255,2]
[382202009,1756543846079,-480.0,0.00020255,2]
[382202010,1756543846088,-480.0,0.00020255,2]
[382202011,1756543846098,-480.0,0.00020255,2]
[382202012,1756543846107,-480.0,0.00020255,2]
[382202013,1756543846116,-1113.63,0.00020255,2]
[382202014,1756543846126,-480.0,0.00020255,2]
[382202015,1756543846135,-480.0,0.00020255,2]
[382202016,1756543846145,-480.0,0.00020255,2]
[382202017,1756543846154,-932.77,0.00020255,2]
[382202018,1756543846163,-404.30934577,0.00020255,2]
[382202019,1756543846174,-480.0,0.00020255,2]
[382202020,1756543846183,-907.03,0.00020255,2]
[382202021,1756543846192,-480.0,0.00020255,2]
[382202022,1756543846202,-480.0,0.00020255,2]
[382202023,1756543846211,-480.0,0.00020255,2]
[382202024,1756543846221,-480.0,0.00020255,2]
[382202025,1756543846231,-480.0,0.00020255,2]
[382202026,1756543846240,-480.0,0.00020255,2]
[382202027,1756543846250,-480.0,0.00020255,2]
[382202028,1756543846259,-480.0,0.00020255,2]
[382202029,1756543846269,-480.0,0.00020255,2]
[382202030,1756543846278,-480.0,0.00020255,2]
[382202031,1756543846287,-480.0,0.00020255,2]
[382202032,1756543846296,-480.0,0.00020255,2]
[382202033,1756543846306,-480.0,0.00020255,2]
[382202034,1756543846315,-480.0,0.00020255,2]
[382202035,1756543846324,-480.0,0.00020255,2]
[382202036,1756543846334,-480.0,0.00020255,2]
[382202037,1756543846345,-480.0,0.00020255,2]
[382202038,1756543846355,-806.65,0.00020255,2]
[382202040,1756543846365,-480.0,0.00020255,2]
[382202046,1756543846525,-480.0,0.00020255,2]
[382202047,1756543846536,-480.0,0.00020255,2]
[382202048,1756543846545,-480.0,0.00020255,2]
[382202049,1756543846555,-480.0,0.00020255,2]
[382202050,1756543846566,-1472.12,0.00020255,2]
[382202051,1756543846578,-480.0,0.00020255,2]
[382202052,1756543846588,-488.94996331,0.00020255,2]
[382202053,1756543846598,-483.89,0.00020255,2]
[382202054,1756543846607,-480.0,0.00020255,2]
[382202055,1756543846619,-480.0,0.00020255,2]
[382202056,1756543846629,-516.7366104,0.00020255,2]
[382202057,1756543846638,-480.0,0.00020255,2]
[382202058,1756543846649,-480.0,0.00020255,2]